fUSD/lending_fUSD_20251210
["ID","MTS","AMOUNT","RATE_DAILY","PERIOD"]
[398130062,1765391443483,-500.0,0.00041611,60]
[398130063,1765391443493,-500.0,0.00041611,60]
[398130064,1765391443502,-500.0,0.00041611,60]
[398130065,1765391443512,-500.0,0.00041611,60]
[398130066,1765391443522,-500.0,0.00041611,60]
[398130067,1765391443531,-500.0,0.00041611,60]
[398130068,1765391443540,-322.56152199,0.00041611,60]
[398130069,1765391443550,-500.0,0.00041611,25]
[398130070,1765391443559,-500.0,0.00041611,60]
[398130071,1765391443569,-500.0,0.00041611,60]
[398130072,1765391443579,-500.0,0.00041611,60]
[398130073,1765391443588,-500.0,0.00041611,60]
[398130074,1765391443598,-500.0,0.00041611,60]
[398130075,1765391443613,-500.0,0.00041611,60]
[398130076,1765391443623,-500.0,0.00041611,60]
[398130077,1765391443632,-500.0,0.00041611,60]
[398130078,1765391443643,-500.0,0.00041611,60]
[398130079,1765391443654,-500.0,0.00041611,60]
[398130080,1765391443664,-500.0,0.00041611,60]
[398130081,1765391443674,-500.0,0.00041611,60]
[398130082,1765391443686,-500.0,0.00041611,60]
[398130083,1765391443695,-500.0,0.00041611,60]
[398130084,1765391443705,-500.0,0.00041611,60]
[398130085,1765391443715,-632.98735935,0.00041611,60]
[398130086,1765391443725,-500.0,0.00041611,60]
[398130087,1765391443734,-500.0,0.00041611,60]
[398130088,1765391443745,-500.0,0.00041611,60]
[398130089,1765391443755,-500.0,0.00041611,60]
[398130090,1765391443765,-500.0,0.00041611,60]
[398130091,1765391443778,-162.367519,0.00041611,30]
[398130092,1765391443788,-500.0,0.00041611,60]
[398130093,1765391443797,-500.0,0.00041611,60]
[398130094,1765391443807,-500.0,0.00041611,60]
[398130095,1765391443816,-500.0,0.00041611,60]
[398130096,1765391443825,-151.0,0.00041611,30]
[398130097,1765391443835,-500.0,0.00041611,60]
[398130098,1765391443845,-151.0,0.00041611,30]
[398130099,1765391443854,-151.0,0.00041611,30]
[398130100,1765391443864,-151.0,0.00041611,30]
[398130101,1765391443873,-151.0,0.00041611,30]
[398130102,1765391443882,-187.508141,0.00041611,30]
[398130103,1765391443893,-500.0,0.00041611,60]
[398130104,1765391443902,-711.889718,0.00041611,2]
[398130105,1765391443913,-711.889718,0.00041611,2]
[398130106,1765391443922,-711.889718,0.00041611,2]
[398130107,1765391443931,-711.889718,0.00041611,2]
[398130108,1765391443941,-711.889718,0.00041611,2]
[398130109,1765391443950,-500.0,0.00041611,60]
[398130110,1765391443959,-711.889718,0.00041611,2]
[398130111,1765391443968,-711.889718,0.00041611,2]
[398130112,1765391443978,-500.0,0.00041611,60]
[398130113,1765391443987,-711.889718,0.00041611,2]
[398130114,1765391443997,-711.889718,0.00041611,2]
[398130115,1765391444009,-711.889718,0.00041611,2]
[398130116,1765391444019,-711.889718,0.00041611,2]
[398130117,1765391444028,-711.889718,0.00041611,2]
[398130118,1765391444038,-500.0,0.00041611,60]
[398130119,1765391444047,-500.0,0.00041611,60]
[398130120,1765391444056,-711.889718,0.00041611,2]
[398130121,1765391444066,-711.889718,0.00041611,2]
[398130122,1765391444076,-711.889718,0.00041611,2]
[398130123,1765391444086,-711.889718,0.00041611,2]
[398130124,1765391444096,-711.889718,0.00041611,2]
[398130125,1765391444106,-711.889718,0.00041611,2]
[398130126,1765391444115,-500.0,0.00041611,60]
[398130127,1765391444125,-711.889718,0.00041611,2]
[398130128,1765391444134,-711.889718,0.00041611,2]
[398130129,1765391444144,-500.0,0.00041611,60]
[398130130,1765391444155,-500.0,0.00041611,60]
[398130131,1765391444166,-151.0,0.00041611,120]
[398130132,1765391444175,-151.0,0.00041611,120]
[398130133,1765391444186,-151.0,0.00041611,120]
[398130134,1765391444196,-151.0,0.00041611,120]
[398130135,1765391444206,-500.0,0.00041611,60]
[398130136,1765391444217,-151.0,0.00041611,120]
[398130137,1765391444227,-151.0,0.00041611,120]
[398130138,1765391444237,-151.0,0.00041611,120]
[398130139,1765391444247,-276.49263,0.00041611,120]
[398130140,1765391444257,-500.0,0.00041611,60]
[398130141,1765391444267,-500.0,0.00041611,60]
[398130142,1765391444276,-500.0,0.00041611,60]
[398130143,1765391444286,-369.81095403,0.00041611,60]
[398130144,1765391444295,-500.0,0.00041611,60]
[398130145,1765391444304,-500.0,0.00041611,60]
[398130146,1765391444315,-500.0,0.00041611,60]
[398130147,1765391444325,-500.0,0.00041611,60]
[398130148,1765391444335,-500.0,0.00041611,60]
[398130149,1765391444345,-500.0,0.00041611,60]
[398130150,1765391444355,-500.0,0.00041611,60]
[398130151,1765391444364,-500.0,0.00041611,60]
[398130152,1765391444375,-500.0,0.00041611,60]
[398130153,1765391444395,-500.0,0.00041611,60]
[398130154,1765391444408,-500.0,0.00041611,60]
[398130155,1765391444593,-500.0,0.00041611,60]
[398130156,1765391444606,-500.0,0.00041611,60]
[398130157,1765391444616,-500.0,0.00041611,60]
[398130158,1765391444625,-500.0,0.00041611,60]
[398130159,1765391444634,-500.0,0.00041611,7]
[398130160,1765391444643,-500.0,0.00041611,60]
[398130161,1765391444654,-356.27,0.00041611,60]
[398130162,1765391444668,-150.0,0.00041611,20]
[398130163,1765391444680,-500.0,0.00041611,60]
[398130164,1765391444689,-500.0,0.00041611,60]
[398130165,1765391444698,-500.0,0.00041611,60]
[398130166,1765391444708,-500.0,0.00041611,60]
[398130167,1765391444717,-595.13,0.00041611,60]
[398130168,1765391444727,-500.0,0.00041611,60]
[398130169,1765391444737,-500.0,0.00041611,14]
[398130170,1765391444747,-500.0,0.00041611,14]
[398130171,1765391444756,-500.0,0.00041611,14]
[398130172,1765391444766,-500.0,0.00041611,14]
[398130173,1765391444775,-500.0,0.00041611,45]
[398130174,1765391444785,-500.0,0.00041611,45]
[398130175,1765391444794,-23431.72758435,0.00041612,2]
[398130176,1765391444803,-23431.72758435,0.00041612,4]
[398130177,1765391444812,-151.0,0.00041612,120]
[398130178,1765391444822,-151.0,0.00041612,120]
[398130179,1765391444831,-151.0,0.00041612,120]
[398130180,1765391444840,-151.0,0.00041612,120]
[398130181,1765391444850,-151.0,0.00041612,120]
[398130182,1765391444859,-203.624196,0.00041612,120]
[398130183,1765391444868,-151.0,0.00041612,120]
[398130184,1765391444878,-151.0,0.00041612,120]
[398130185,1765391444887,-151.0,0.00041612,120]
[398130186,1765391444896,-151.0,0.00041612,120]
[398130187,1765391444906,-151.0,0.00041612,120]
[398130188,1765391444916,-151.0,0.00041612,120]
[398130189,1765391444925,-156.3254,0.00041612,120]
[398130190,1765391444935,-151.0,0.00041612,120]
[398130191,1765391444944,-151.0,0.00041612,120]
[398130192,1765391444954,-215.750823,0.00041612,120]
[398130193,1765391444963,-151.0,0.00041612,120]
[398130194,1765391444972,-151.0,0.00041612,120]
[398130195,1765391444982,-151.311678,0.00041612,120]
[398130196,1765391444991,-156.222831,0.00041612,120]
[398130197,1765391445001,-151.0,0.00041612,120]
[398130198,1765391445010,-151.0,0.00041612,120]
[398130199,1765391445019,-151.0,0.00041612,120]
[398130200,1765391445029,-151.0,0.00041612,120]
[398130201,1765391445038,-178.76548,0.00041612,120]
[398130202,1765391445048,-151.0,0.00041612,120]
[398130203,1765391445058,-151.0,0.00041612,120]
[398130204,1765391445067,-155.047168,0.00041612,120]
[398130205,1765391445076,-156.268125,0.00041612,120]
[398130206,1765391445085,-169.672771,0.00041612,120]
[398130207,1765391445097,-151.0,0.00041612,120]
[398130208,1765391445106,-151.0,0.00041612,120]
[398130209,1765391445116,-368.434564,0.00041612,120]
[398130210,1765391445125,-368.434564,0.00041612,120]
[398130211,1765391445134,-368.434564,0.00041612,120]
[398130212,1765391445143,-368.434564,0.00041612,120]
[398130213,1765391445154,-368.434564,0.00041612,120]
[398130214,1765391445163,-368.434564,0.00041612,120]
[398130215,1765391445172,-368.434564,0.00041612,120]
[398130216,1765391445182,-368.434564,0.00041612,120]
[398130217,1765391445191,-368.434564,0.00041612,120]
[398130218,1765391445200,-368.434564,0.00041612,120]
[398130219,1765391445220,-368.434564,0.00041612,120]
[398130220,1765391445240,-368.434564,0.00041612,120]
[398130221,1765391445250,-368.434564,0.00041612,120]
[398130222,1765391445259,-368.434564,0.00041612,120]
[398130223,1765391445269,-368.434564,0.00041612,120]
[398130224,1765391445278,-368.434564,0.00041612,120]
[398130225,1765391445288,-368.434564,0.00041612,120]
[398130226,1765391445298,-368.434564,0.00041612,120]
[398130227,1765391445307,-368.434564,0.00041612,120]
[398130228,1765391445316,-368.434571,0.00041612,120]
[398130229,1765391445326,-151.0,0.00041612,120]
[398130230,1765391445336,-151.0,0.00041612,120]
[398130231,1765391445345,-151.0,0.00041612,120]
[398130232,1765391445354,-151.0,0.00041612,120]
[398130233,1765391445364,-151.0,0.00041612,120]
[398130234,1765391445372,-151.0,0.00041612,120]
[398130235,1765391445381,-151.0,0.00041612,120]
[398130236,1765391445391,-151.0,0.00041612,120]
[398130237,1765391445400,-197.479084,0.00041612,120]
[398130238,1765391445410,-151.0,0.00041613,30]
[398130239,1765391445419,-151.0,0.00041613,30]
[398130241,1765391445428,-151.0,0.00041613,30]
[398130242,1765391445438,-1798.69539544,0.00041613,31]
[398130243,1765391445447,-16632.98408592,0.00041614,7]
[398130244,1765391445498,-850.70400359,0.00041614,7]
[398130245,1765391445510,-1550.73238527,0.00041614,7]
[398130246,1765391445523,-1043.35,0.00041614,7]
[398130247,1765391445534,-1111.36179119,0.00041614,7]
[398130249,1765391446850,-1.7e-07,0.00041614,7]
[398130250,1765391446965,-265.96,0.00041614,7]
[398130251,1765391446977,-532.00000002,0.00041614,7]
[398130252,1765391446990,-499.78507945,0.00041614,7]
[398130253,1765391447001,-7028.84508125,0.00041614,7]
[398130254,1765391447012,-820.95209632,0.00041614,7]
[398130255,1765391447023,-4303.43110028,0.00041614,7]
[398130256,1765391447034,-907.96447581,0.00041614,7]
[398130257,1765391447045,-90138.42393929,0.00041614,7]
[398130258,1765391447057,-3689.52,0.00041614,7]
[398130259,1765391447069,-298.51436949,0.00041614,7]
[398130260,1765391447080,-1518.12334425,0.00041614,7]
[398130261,1765391447092,-979338.77096071,0.00041614,7]
[398130262,1765391447145,-6515.0,0.00034513,2]
[398130263,1765391447155,-271.55,0.000403,14]
[398130264,1765391447164,-271.55,0.000411,14]
[398130265,1765391447175,-66104.72992143,0.00041614,7]
[398130266,1765391447186,-3024.93138412,0.00041614,7]
[398130267,1765391447254,-2109.40904303,0.00041614,7]
[398130268,1765391447265,-411.999998,0.00041614,7]
[398130269,1765391447277,-36427.40427784,0.00041614,7]
[398130270,1765391464416,-267.40433356,0.00016999,2]
[398130271,1765391464440,-500.0,0.00016999,2]
[398130272,1765391464463,-207.89597685,0.00016999,2]
[398130273,1765391468427,-158.03885604,0.00016999,2]
[398130274,1765391468453,-70.9595209,0.00016999,2]
[398130275,1765391471239,422.1963,0.00016999,2]
[398130276,1765391473099,-77.8037,0.00016999,2]
[398130277,1765391473122,-95.26876241,0.00016999,2]
[398130278,1765391474667,-228.15260108,0.00016999,2]
[398130279,1765391476181,-176.57863651,0.00016999,2]
[398130280,1765391476203,-44.7926048,0.00016999,2]
[398130281,1765391478297,-252.46156236,0.00016999,2]
[398130282,1765391480434,-247.53843764,0.00016999,2]
[398130283,1765391480458,-22.78898308,0.00016999,2]
[398130284,1765391483459,-174.15624375,0.00016999,2]
[398130285,1765391485868,-191.68912253,0.00016999,2]
[398130286,1765391488478,-111.36565064,0.00016999,2]
[398130287,1765391488502,-189.63316251,0.00016999,2]
[398130288,1765391492319,-193.15543735,0.00016999,2]
[398130289,1765391495458,-1.45927444,0.00016999,2]
[398130290,1765391495481,-212.61860068,0.00016999,2]
[398130291,1765391500351,-393.24779448,0.00016999,2]
[398130292,1765391503044,-106.75220552,0.00016999,2]
[398130293,1765391503065,-371.97342857,0.00016999,2]
[398130294,1765391505269,-128.02657143,0.00016999,2]
[398130295,1765391505293,-260.07639884,0.00016999,2]
[398130296,1765391507370,-239.92360116,0.00016999,2]
[398130297,1765391507399,-10.07639884,0.00016999,2]
[398130298,1765391510072,-152.46169994,0.00016999,2]
[398130299,1765391511550,-240.95116822,0.00016999,2]
[398130300,1765391513580,-96.510733,0.00016999,2]
[398130301,1765391513612,-203.489267,0.00016999,2]
[398130302,1765391515538,-193.46264545,0.00016999,2]
[398130303,1765391517055,-0.84532842,0.00016999,2]
[398130304,1765391517078,-165.94299404,0.00016999,2]
[398130305,1765391518741,-334.05700596,0.00016999,2]
[398130306,1765391518763,-7.72645036,0.00016999,2]
[398130307,1765391522107,-169.87591467,0.00016999,2]
[398130308,1765391523875,-322.39763497,0.00016999,2]
[398130309,1765391523911,-50.26690003,0.00016999,2]
[398130310,1765391525305,-280.27209559,0.00016999,2]
[398130311,1765391526685,-169.46100438,0.00016999,2]
[398130312,1765391526708,-176.63455705,0.00016999,2]
[398130313,1765391529322,-161.5858876,0.00016999,2]
[398130314,1765391531575,-177.58309466,0.00016999,2]
[398130315,1765391533037,-68.56572067,0.00016999,2]
[398130316,1765391533062,-181.326028,0.00016999,2]
[398130317,1765391536234,-274.25378003,0.00016999,2]
[398130318,1765391537734,-44.42019197,0.00016999,2]
[398130319,1765391537760,-112.84725628,0.00016999,2]
[398130320,1765391542402,-158.63546061,0.00016999,2]
[398130321,1765391542428,-3.11546498,0.00016999,2]
[398130322,1765391544796,-411.9622714,0.00016999,2]
[398130323,1765391548993,-84.92226362,0.00016999,2]
[398130324,1765391549018,-271.48271689,0.00016999,2]
[398130325,1765391549040,-10.35632024,0.00018699,2]
[398130326,1765391552681,-277.21878506,0.00016999,2]
[398130327,1765391554654,-152.08394234,0.00016999,2]
[398130328,1765391556175,-70.6972726,0.00016999,2]
[398130329,1765391556209,-141.92617094,0.00016999,2]
[398130330,1765391560944,-164.35275301,0.00018699,2]
[398130331,1765391575352,181.0,1.14e-06,120]
[398130332,1765391584835,181.0,1.14e-06,120]
[398130333,1765391658844,-172.86831948,0.00016999,2]
[398130334,1765391662537,-197.12085341,0.00016999,2]
[398130335,1765391664057,-130.01082711,0.00016999,2]
[398130336,1765391664084,-128.33650309,0.00016999,2]
[398130337,1765391666183,-155.18376614,0.00016999,2]
[398130338,1765391668323,-211.99191907,0.00016999,2]
[398130339,1765391669630,-138.93341051,0.00016999,2]
[398130340,1765391669657,-91.12574502,0.00016999,2]
[398130341,1765391671103,-349.88288169,0.00016999,2]
[398130342,1765391673291,-58.99137329,0.00016999,2]
[398130343,1765391673315,-150.90584161,0.00016999,2]
[398130344,1765391675254,-159.06808244,0.00016999,2]
[398130357,1765391677796,-190.02607595,0.00016999,2]
[398130358,1765391677819,-33.47965345,0.00018699,2]
[398130377,1765391718884,-180.63812226,0.00017873,2]
[398130378,1765391720840,-200.0,0.00017873,2]
[398130379,1765391749404,-180.71246424,0.00016999,2]
[398130380,1765391751559,-275.68198145,0.00016999,2]
[398130381,1765391753312,-43.60555431,0.00016999,2]
[398130382,1765391753337,-120.59514416,0.00017873,2]
[398130383,1765391753362,-18.13475584,0.00018699,2]
[398130384,1765391754907,-23.67651746,0.00018699,2]
[398130385,1765391754928,-154.92216432,0.00019082,2]
[398130386,1765391793865,-161.32044445,0.00017151,2]
[398130387,1765391795794,-345.24033168,0.00017151,2]
[398130388,1765391798326,-289.21689769,0.00017151,2]
[398130389,1765391801507,-3.92527088,0.00017151,2]
[398130390,1765391801531,-45.07783568,0.00019082,2]
[398130391,1765391801554,-147.47782926,0.00019433,2]
[398130392,1765391803418,-298.58105977,0.00019433,2]
[398130393,1765391805355,-345.34973412,0.00019433,2]
[398130394,1765391853935,-500.0,0.00017873,2]
[398130395,1765391853960,-8.29432155,0.00019433,2]
[398130396,1765391853983,-25.13051844,0.00020938,2]
[398130397,1765391855489,-445.55762185,0.00020938,2]
[398130399,1765391883898,-232.00788495,0.00016999,2]
[398130400,1765391886247,-267.99211505,0.00016999,2]
[398130401,1765391886283,-10.33783656,0.00020938,2]
[398130402,1765391899431,-402.74111737,0.00016999,2]
[398130403,1765391901318,-97.25888263,0.00016999,2]
[398130404,1765391901342,-402.74111737,0.00016999,2]
[398130405,1765391914917,-97.25888263,0.00016999,2]
[398130406,1765391914942,-154.48327391,0.00016999,2]
[398130407,1765391917329,-173.29913374,0.00016999,2]
[398130408,1765391918877,-172.21759235,0.00016999,2]
[398130409,1765391918901,-67.49181319,0.00016999,2]
[398130410,1765391920417,-200.25940914,0.00016999,2]
[398130411,1765391920460,-49.75285476,0.00016999,2]
[398130412,1765391922926,-302.0,0.00016999,2]
[398130413,1765391924480,-148.24714524,0.00016999,2]
[398130414,1765391924505,-151.31914897,0.00016999,2]
[398130415,1765391926027,-348.68085103,0.00016999,2]
[398130416,1765391926053,-61.7100012,0.00017632,2]
[398130417,1765391927457,-164.1197709,0.00017632,2]
[398130418,1765391927484,-69.80067591,0.00019976,2]
[398130419,1765392020934,-216.85638667,0.00019976,2]
[398130420,1765392022972,-107.14361333,0.00019976,2]
[398130421,1765392023003,-150.26082984,0.00019976,2]
[398130422,1765392049661,-171.07957278,0.00017653,2]
[398130423,1765392051170,-452.9908319,0.00017653,2]
[398130424,1765392052815,-175.09672038,0.00017653,2]
[398130425,1765392054396,-426.03308971,0.00017653,2]
[398130426,1765392058122,-222.796716,0.00017653,2]
[398130427,1765392059697,-131.44908103,0.00017653,2]
[398130428,1765392059725,-5.76826635,0.00019976,2]
[398130429,1765392059754,-163.83944479,0.00020003,2]
[398130430,1765392061755,-174.58591822,0.00020003,2]
[398130431,1765392066554,-294.81623386,0.00020003,2]
[398130432,1765392069149,-300.0,0.00020003,2]
[398130433,1765392071747,-333.86092404,0.00020003,2]
[398130434,1765392074321,-312.34349089,0.00020003,2]
[398130435,1765392074347,-17.80553839,0.00020938,2]
[398130436,1765392077890,-1.16848476,0.00020938,2]
[398130437,1765392077920,-251.46468946,0.00021393,2]
[398130438,1765392079980,-5.44681196,0.00021393,2]
[398130439,1765392080005,-168.07387925,0.00021715,2]
[398130440,1765392094061,-250.0,0.00016999,2]
[398130441,1765392096412,-191.32246681,0.00016999,2]
[398130442,1765392099145,-58.67753319,0.00016999,2]
[398130443,1765392099171,-294.70928054,0.00016999,2]
[398130444,1765392109256,-205.29071946,0.00016999,2]
[398130445,1765392109284,-301.23177778,0.00021715,2]
[398130446,1765392110786,-330.39728767,0.00021715,2]
[398130447,1765392110817,-44.92110384,0.00021729,2]
[398130448,1765392112298,-244.20985347,0.00021729,2]
[398130449,1765392154408,-300.02134507,0.00021051,2]
[398130450,1765392183876,-199.97865493,0.00021051,2]
[398130451,1765392183899,-58.86876955,0.00021729,2]
[398130452,1765392183926,-122.7717703,0.00021818,2]
[398130453,1765392185446,-204.94623169,0.00021818,2]
[398130454,1765392185472,-34.24210991,0.00021916,2]
[398130455,1765392189678,-697.99096578,0.00021916,2]
[398130456,1765392191078,-312.10316502,0.00021916,2]
[398130457,1765392192485,-155.66375929,0.00021916,2]
[398130458,1765392192512,-300.0,0.00021917,2]
[398130459,1765392192534,-60.2343881,0.00021917,2]
[398130460,1765392195687,-178.30930295,0.00021917,2]
[398130461,1765392197321,-61.45630895,0.00021917,2]
[398130462,1765392197540,-246.48627613,0.00021917,2]
[398130463,1765392199462,-271.35627718,0.00021917,2]
[398130464,1765392273895,-231.99981792,0.00021818,2]
[398130465,1765392273919,-70.00018208,0.00021917,2]
[398130466,1765392303880,-245.13169458,0.00021818,2]
[398130467,1765392305302,-82.58630739,0.00021818,2]
[398130468,1765392305329,-191.73093122,0.00021917,2]
[398130469,1765392307804,-222.18991899,0.00021917,2]
[398130470,1765392310726,-194.29659447,0.00021917,2]
[398130471,1765392312226,-3.93981993,0.00021917,2]
[398130472,1765392312251,-165.48140306,0.00021917,2]
[398130473,1765392313742,-134.51859694,0.00021917,2]
[398130474,1765392313767,-129.31173741,0.00021917,2]
[398130475,1765392317036,-212.50087032,0.00021917,2]
[398130476,1765392320105,-208.35748136,0.00021917,2]
[398130477,1765392321599,-649.82991091,0.00021917,2]
[398130478,1765392321630,-43.75222275,0.00021917,2]
[398130479,1765392325513,-196.8679093,0.00021917,2]
[398130480,1765392328716,-353.59452488,0.00016999,2]
[398130481,1765392333364,-146.40547512,0.00016999,2]
[398130482,1765392333389,-275.90767745,0.00016999,2]
[398130483,1765392334920,-152.85,0.00016999,2]
[398130484,1765392337615,-71.24232255,0.00016999,2]
[398130485,1765392337638,-59.37986795,0.00021917,2]
[398130486,1765392337661,-31.56025822,0.00021918,2]
[398130487,1765392340409,-500.0,0.00016999,2]
[398130488,1765392340431,-12.22190049,0.00016999,2]
[398130489,1765392341886,-487.77809951,0.00016999,2]
[398130490,1765392341912,-14.79836524,0.00021918,2]
[398130491,1765392344044,-105.97874633,0.00021918,2]
[398130492,1765392344071,-152.33736979,0.00021918,2]
[398130493,1765392344096,-152.33736979,0.00021918,2]
[398130494,1765392344120,-9.46319789,0.00021918,4]
[398130495,1765392346058,-320.85477199,0.00021918,4]
[398130496,1765392348750,-169.68203012,0.00021918,4]
[398130497,1765392348774,-157.20311046,0.00021918,4]
[398130498,1765392350884,-195.00046304,0.00021918,4]
[398130499,1765392352584,-147.7964265,0.00021918,4]
[398130500,1765392352607,-194.79967416,0.00021918,4]
[398130501,1765392354748,-230.85,0.00021918,4]
[398130502,1765392357354,-74.35032584,0.00021918,4]
[398130503,1765392357380,-160.22597432,0.00021918,4]
[398130504,1765392359895,-302.00590876,0.00021918,4]
[398130505,1765392361511,-37.76811692,0.00021918,4]
[398130506,1765392361536,-334.486498,0.00021918,4]
[398130507,1765392365426,-450.0,0.00016999,2]
[398130508,1765392367615,-50.0,0.00016999,2]
[398130509,1765392367639,-255.67417411,0.00016999,2]
[398130510,1765392369581,-244.32582589,0.00016999,2]
[398130511,1765392369605,-40.86212222,0.00021918,4]
[398130512,1765392372378,-124.65137978,0.00021918,4]
[398130513,1765392372403,-112.65943549,0.00021918,4]
[398130514,1765392376170,-387.34056451,0.00021918,4]
[398130515,1765392376194,-78.96012039,0.00021918,4]
[398130516,1765392378210,-248.14476293,0.00021918,4]
[398130517,1765392381979,-167.74421959,0.00021918,4]
[398130518,1765392383479,-5.15089709,0.00021918,4]
[398130519,1765392383508,-146.77075785,0.00021918,4]
[398130520,1765392385562,-218.71829093,0.00021918,4]
[398130521,1765392439001,-273.58245737,0.00016999,2]
[398130522,1765392441093,-226.41754263,0.00016999,2]
[398130523,1765392441122,-76.49525538,0.00016999,2]
[398130524,1765392443749,-304.5266766,0.00016999,2]
[398130525,1765392462362,-118.97806802,0.00016999,2]
[398130526,1765392462388,-240.03423913,0.0002126,2]
[398130527,1765392466710,-195.92498278,0.0002126,2]
[398130528,1765392474410,-500.0,0.00016999,2]
[398130529,1765392474440,-500.0,0.00016999,2]
[398130530,1765392491775,-192.59555683,0.00017873,2]
[398130531,1765392493735,-250.83833018,0.00017873,2]
[398130532,1765392496399,-56.56611299,0.00017873,2]
[398130533,1765392496422,-303.01410724,0.00018421,2]
[398130534,1765392498500,-184.51253644,0.00018421,2]
[398130535,1765392521254,-500.0,0.00016999,2]
[398130536,1765392521285,-500.0,0.00016999,2]
[398130538,1765392533919,500.0,0.00016999,2]
[398130539,1765392534161,500.0,0.00016999,2]
[398130540,1765392558864,-303.65561637,0.00017873,2]
[398130541,1765392561533,-164.72726301,0.00017873,2]
[398130542,1765392565134,-31.61712062,0.00017873,2]
[398130543,1765392565159,-183.27091514,0.00017873,2]
[398130544,1765392567123,-316.72908486,0.00017873,2]
[398130545,1765392567148,-12.47335632,0.00018421,2]
[398130546,1765392567170,-6.28267571,0.00018421,2]
[398130547,1765392569230,-353.38140399,0.00018421,2]
[398130558,1765392631602,-140.3359203,0.00018421,2]
[398130560,1765392631613,-64.04077809,0.0002126,2]
[398130563,1765392631624,-154.66654528,0.00021818,2]
[398130566,1765392631634,-500.0,0.00021893,2]
[398130569,1765392631644,-500.0,0.00021918,4]
[398130571,1765392631654,-634.51095122,0.00021918,4]
[398130573,1765392631664,-225.8297721,0.0002232,2]
[398130574,1765392631674,-154.66654526,0.00022338,2]
[398130576,1765392631683,-1579.4460118,0.00022353,2]
[398130578,1765392631693,-340.11427191,0.0002239,2]
[398130580,1765392631703,-1200.0,0.00022857,2]
[398130582,1765392631712,-1200.0,0.00022857,2]
[398130584,1765392631721,-154.66654526,0.00022858,2]
[398130585,1765392631734,-1597.45,0.00022958,2]
[398130586,1765392631744,-843.17265878,0.00022958,2]
[398130587,1765392631766,-714.85895225,0.00022958,2]
[398130588,1765392631783,-995.88708944,0.00022958,2]
[398130589,1765392631800,-586.87441255,0.00022858,2]
[398130590,1765392631811,-404.23129953,0.00022958,2]
[398130591,1765392631822,-511.05,0.00022958,2]
[398130592,1765392631832,-9999.99,0.00022958,2]
[398130593,1765392631842,-506.87,0.00022958,5]
[398130594,1765392631852,-5299.68318637,0.00022958,2]
[398130595,1765392631865,-4700.30681363,0.00022958,2]
[398130597,1765392631875,-150.99,0.00022958,2]
[398130599,1765392631885,-1580.49600382,0.00022958,2]
[398130603,1765392631926,-8419.49399618,0.00022958,2]
[398130604,1765392631939,-24991.10132731,0.00022958,2]
[398130613,1765392637834,-155.51105439,0.00022757,43]
[398130614,1765392637845,-24689.15867269,0.00022958,2]
[398130615,1765392637855,-999.99,0.00022958,2]
[398130616,1765392637865,-299.99,0.00022958,7]
[398130617,1765392637875,-3672.67,0.00022958,2]
[398130618,1765392637885,-1528.58,0.00022958,2]
[398130619,1765392637896,-499.99,0.00022958,2]
[398130620,1765392637905,-13911.74,0.00022958,2]
[398130621,1765392637916,-9999.99,0.00022958,2]
[398130622,1765392637925,-18290.74,0.00022958,2]
[398130623,1765392637936,-150.99,0.00022958,2]
[398130624,1765392637946,-1196.89,0.00022958,2]
[398130625,1765392637955,-1196.89,0.00023232,2]
[398130626,1765392637966,-1196.89,0.00023506,2]
[398130627,1765392637976,-1196.89,0.0002378,2]
[398130628,1765392637986,-500.0,0.00023803,2]
[398130629,1765392637996,-200.0,0.00023803,2]
[398130630,1765392638006,-194.21929349,0.00023803,2]
[398130631,1765392638016,-500.0,0.00023803,2]
[398130632,1765392638027,-500.0,0.00023803,2]